[Event "SixDays Budapest January IM-A 2025"]
[Site "Budapest"]
[Date "2025.01.28"]
[Round "5.1"]
[White "Fodor, Balazs"]
[Black "Karacsonyi, Kata"]
[Result "1-0"]
[Annotator "TA"]
[ECO "A45"]
[WhiteElo "2214"]
[BlackElo "2183"]
[PlyCount "101"]
[EventDate "2025.01.24"]
[EventType "tourn"]
[EventCountry "HUN"]
[SourceTitle "playchess.com"]
[Source "ChessBase"]
[SourceQuality "1"]
[TimeControl "5400+30"]

{[%evp 9,101,-41,-37,-30,-26,-48,-44,-43,-2,-36,-22,-25,-18,-58,-54,-54,-53,-78,-76,-62,-86,-102,-25,-35,0,-17,-19,-33,-43,-138,-92,-88,-53,-49,-55,-37,-56,-44,-50,-408,-391,-414,-398,-376,-158,-139,-98,-95,-8,-20,47,7,0,0,163,11,10,17,10,12,19,0,0,-21,-12,-21,0,0,0,0,31,24,187,205,731,714,842,571,549,327,1142,1142,1668,1668,29959,29959,29987,29975,29975,29976,29975,29976,5414,5389]} 1. d4 {[%emt 0:00:03]} Nf6 {[%emt 0:03:58]} 2. Bg5 {[%emt 0:01:18]} d5 {[%emt 0:00:23]} 3. Bxf6 {[%emt 0:01:22]} gxf6 {[%emt 0:03:09]} 4. Nf3 {[%emt 0:01:10]} c5 {[%emt 0:01:28]} 5. c3 {[%emt 0:00:44]} Nc6 {[%emt 0:06:18]} 6. e3 {[%emt 0:04:43] D00: 1 d4 d5: Unusual lines.} e5 {[%emt 0:07:19]} 7. dxc5 {[%emt 0:06:20]} Bxc5 {[%emt 0:11:16]} 8. Nbd2 {[%emt 0:00:22] Black is slightly better.} O-O {[%emt 0:03:00]} 9. Be2 {[%emt 0:02:37]} Kh8 $146 {[%emt 0:00:29]} (9... a5 10. O-O f5 11. g3 Be6 12. a4 Qf6 13. Bb5 Rfd8 14. Rc1 Rac8 15. Qe2 Bb6 {0-1 Usov,A (2291)-Suleymanli,A (2626) Titled Tuesday intern op 18th Jun Early blitz 2024 (3)}) 10. b4 {[%emt 0:09:12]} Bb6 {[%emt 0:02:35]} 11. b5 {[%emt 0:03:13]} Ne7 {[%emt 0:01:37]} 12. O-O {[%emt 0:02:18]} Rg8 {[%emt 0:04:28]} 13. g3 {[%emt 0:03:19]} Bh3 {[%emt 0:02:46]} 14. Re1 {[%emt 0:00:07]} Nf5 {[%emt 0:09:40][%cal Ob6e3]} 15. Bf1 {[%emt 0:00:20]} Bxf1 {[%emt 0:06:29]} ({Black should try} 15... Bg4 $17 16. h3 Bxf3 (16... Bh5 17. Nxe5 Nxg3 18. fxg3 $17) 17. Nxf3 Qd6) 16. Nxf1 {[%emt 0:02:44] A sharp opening} e4 {[%emt 0:03:13]} 17. N3d2 {[%emt 0:06:31]} Qc8 {[%emt 0:02:50]} 18. Qh5 {[%emt 0:06:00] Prevents Nh4.} (18. c4 Nh4 19. Qe2 (19. cxd5 $2 Qh3) 19... Qh3 $17) 18... Qe6 {[%emt 0:03:46]} 19. f4 {[%emt 0:05:40]} (19. Nb3 $15) 19... Rg6 {[%emt 0:06:38]} (19... Ba5 $142 20. Red1 Bxc3) 20. a4 {[%emt 0:09:23]} Rag8 {[%emt 0:06:39]} 21. a5 {[%emt 0:00:36]} Rh6 {[%emt 0:01:28]} 22. Qd1 {[%emt 0:05:45][%cal Oc3c4]} Bc5 {[%emt 0:07:38]} 23. Re2 {[%emt 0:04:43]} Nh4 {[%emt 0:02:10]} 24. Kh1 $2 {[%emt 0:00:41][%mdl 8192] [#]} ({White should play} 24. Qe1 $15) 24... Qh3 $1 $19 {[%emt 0:01:22]} 25. Qe1 {[%emt 0:03:57]} (25. gxh4 $2 Rhg6 $19) (25. Kg1 Rhg6) 25... Nf5 {[%emt 0:00:56]} 26. Rg2 {[%emt 0:06:24] [#]} Rhg6 {[%emt 0:00:29]} (26... Bxe3 $1 $19 {has better winning chances.} 27. b6 (27. Nxe3 $2 Rxg3 28. Ndf1 Rxe3 $19) 27... a6 28. Nxe3 Rxg3) 27. c4 $17 {[%emt 0:03:45] [#]} Nh4 $1 {[%emt 0:01:13][%mdl 512]} 28. Rg1 {[%emt 0:00:05] [#]} (28. Re2 Nf5) 28... dxc4 {[%emt 0:00:40]} (28... Bb4 $1 $17 {White must now prevent ...Nf3.} 29. Qf2 Bxd2 30. Nxd2 Nf5) 29. Qe2 $11 {[%emt 0:01:13] Inhibits Nf3.} f5 {[%emt 0:00:27]} (29... Bb4 $11 30. Nxc4 Nf3) 30. Nxc4 {[%emt 0:00:25]} (30. Qxc4 {keeps more tension.} b6 31. Qxf7 Nf3 32. Nxf3 exf3 33. Ra2) 30... Nf3 {[%emt 0:00:22] Wards off Ne5} 31. Rg2 {[%emt 0:00:22][%cal Bg1g2,Bg2f2,Bf2f4][%mdl 32]} Rh6 $2 {[%emt 0:00:38]} (31... h5 $11) 32. Ne5 $2 {[%emt 0:00:58]} ({White has to play} 32. Rd1 $18) 32... Nxe5 {[%emt 0:00:14]} 33. fxe5 {[%emt 0:00:01]} Re6 {[%emt 0:00:44]} 34. Rd1 {[%emt 0:01:19][%cal Ba1d1,Bd1d7,Bd7a7][%mdl 32]} Rxe5 {[%emt 0:00:35]} 35. Qb2 {[%emt 0:00:44]} f6 {[%emt 0:00:16]} 36. Rf2 {[%emt 0:01:59]} Qh6 {[%emt 0:00:34]} 37. Rf4 {[%emt 0:00:19]} Qg7 {[%emt 0:00:34]} 38. Qf2 {[%emt 0:01:05]} Qg6 {[%emt 0:00:35]} 39. Rd7 {[%emt 0:00:05]} b6 {[%emt 0:00:30]} 40. a6 {[%emt 0:00:06]} Qe8 $2 {[%emt 0:00:26]} (40... Rg7 $11 {and Black is okay.} 41. Rb7 Bd6) 41. Rxa7 $18 {[%emt 0:00:24][%csl Oa6] White has a strong passed pawn} Qxb5 $2 {[%emt 0:00:35]} (41... Rg7 42. Rb7 Rxb7 43. axb7 Re7 44. Rxf5 Rxb7 45. Rxf6 Kg8 46. Qa2+ Kh8) 42. Rxf5 {[%emt 0:00:52]} Be7 {[%emt 0:00:20]} 43. Rxe5 {[%emt 0:00:45]} Qxe5 {[%emt 0:00:08]} 44. Qf4 {[%emt 0:00:43]} Qc5 {[%emt 0:00:55]} (44... Qxf4 45. gxf4 Bc5) 45. Rb7 {[%emt 0:00:26]} Rd8 {[%emt 0:00:37]} 46. a7 {[%emt 0:00:13]} b5 {[%emt 0:00:30]} 47. Qxe4 {[%emt 0:02:29]} Qc1 {[%emt 0:00:30]} 48. Kg2 {[%emt 0:00:07]} (48. Qxe7 $2 Qxf1#) 48... Qb2+ {[%emt 0:00:30]} 49. Kg1 {[%emt 0:00:54]} Qe5 {[%emt 0:00:26]} 50. Qxe5 {[%emt 0:00:12]} fxe5 {[%emt 0:00:04]} 51. Rb8 {[%emt 0:00:12] Never resign too early!   Weighted Error Value: White=0.34/Black=0.74  Loses game:     	White=1     	Black=2      Missed win:     	---       	Black=1      Mistake:       	White=2     	Black=6      Inaccurate:     	White=3     	Black=5      OK:         	White=13    	Black=14     Best:        	White=5     	Black=2      Strong:       	---       	Black=1} 1-0

[Event "SixDays Budapest January IM-A 2025"]
[Site "Budapest"]
[Date "2025.01.28"]
[Round "5.2"]
[White "Pribelszky, Bence Daniel"]
[Black "Kustar, Sandor"]
[Result "1-0"]
[Annotator "TA"]
[ECO "A05"]
[WhiteElo "2391"]
[BlackElo "2240"]
[PlyCount "99"]
[EventDate "2025.01.24"]
[EventType "tourn"]
[EventCountry "HUN"]
[SourceTitle "playchess.com"]
[Source "ChessBase"]
[SourceQuality "1"]
[TimeControl "5400+30"]

{[%evp 20,99,27,27,9,-29,8,3,17,14,40,21,23,25,19,24,37,19,25,31,23,26,25,32,25,37,36,44,42,27,28,39,40,17,17,14,56,21,36,12,35,29,32,32,49,62,62,62,63,16,65,29,27,3,66,21,38,32,33,20,29,18,29,16,16,16,20,17,78,79,95,88,75,63,192,191,211,193,322,317,574,570]} 1. Nf3 {[%emt 0:06:01]} Nf6 {[%emt 0:00:38]} 2. g3 {[%emt 0:00:08]} g6 {[%emt 0:00:17]} 3. b3 {[%emt 0:00:19]} Bg7 {[%emt 0:00:17]} 4. Bb2 {[%emt 0:00:06]} c5 {[%emt 0:03:12]} 5. c4 {[%emt 0:00:26]} b6 {[%emt 0:04:54]} 6. Bg2 {[%emt 0:02:36]} Bb7 {[%emt 0:00:11]} 7. O-O {[%emt 0:00:32]} O-O {[%emt 0:01:19]} 8. d4 {[%emt 0:00:57]} cxd4 {[%emt 0:00:50]} 9. Qxd4 {[%emt 0:00:23]} d6 {[%emt 0:02:39]} 10. Nc3 {[%emt 0:03:03]} Nbd7 {[%emt 0:00:17]} 11. Rac1 {[%emt 0:07:47]} a6 {[%emt 0:02:13]} 12. Qd3 {[%emt 0:10:58]} Rc8 {[%emt 0:09:01]} 13. Rfd1 {[%emt 0:05:58]} Rc7 {[%emt 0:05:49] The position is equal.} 14. Nd5 {[%emt 0:13:48]} Rc5 {[%emt 0:25:39]} 15. Bxf6 {[%emt 0:13:06]} Nxf6 {[%emt 0:01:17]} 16. b4 {[%emt 0:01:20]} Rc8 {[%emt 0:01:18][%cal Bc5c8,Bc8a8,Ba8a2][%mdl 32]} 17. Nd4 {[%emt 0:00:24] Excellent horsemanship.} Ba8 {[%emt 0:14:03]} 18. Qe3 {[%emt 0:11:41]} Re8 {[%emt 0:03:40]} 19. Nxf6+ {[%emt 0:01:02]} Bxf6 {[%emt 0:01:35] Black is weak on the light squares} 20. Bxa8 {[%emt 0:00:06]} Rxa8 {[%emt 0:00:12]} 21. Nc6 {[%emt 0:00:27]} Qd7 {[%emt 0:09:33]} 22. Qxb6 {[%emt 0:03:14]} Rec8 {[%emt 0:00:03]} 23. b5 {[%emt 0:05:27]} axb5 {[%emt 0:00:06]} 24. cxb5 {[%emt 0:00:04] And now Qc5 would win.} Rxa2 {[%emt 0:00:07]} 25. Qe3 {[%emt 0:00:18][%cal Oc6e7] Strongly threatening Nxe7+!} Kg7 {[%emt 0:01:33]} 26. Rd2 {[%emt 0:03:23]} Rxd2 {[%emt 0:01:27]} 27. Qxd2 {[%emt 0:00:02]} Qb7 {[%emt 0:00:43]} 28. Qb4 {[%emt 0:05:05]} d5 {[%emt 0:02:20]} 29. Rb1 {[%emt 0:00:47]} e6 {[%emt 0:00:29]} 30. Qc5 {[%emt 0:02:24]} Rc7 {[%emt 0:01:33]} 31. Rc1 {[%emt 0:01:46]} Be7 {[%emt 0:00:40]} 32. Qc3+ {[%emt 0:00:48]} Bf6 {[%emt 0:00:10]} 33. Qa5 {[%emt 0:00:21]} Qc8 {[%emt 0:03:50]} 34. Qa6 {[%emt 0:01:58]} (34. Kg2 $14) 34... Qd7 {[%emt 0:00:10]} (34... Rb7 $1 $11 {was preferrable.}) 35. Rb1 {[%emt 0:00:29]} d4 {[%emt 0:01:02]} 36. Qa3 {[%emt 0:00:33]} Rb7 {[%emt 0:01:19]} ({Black should play} 36... Qd5 $11) 37. Qf3 {[%emt 0:00:41] White is much more active.} Rb6 {[%emt 0:00:23]} 38. h4 {[%emt 0:00:24]} h5 {[%emt 0:00:05]} 39. Kg2 {[%emt 0:00:33]} Qd6 {[%emt 0:00:02]} 40. Na5 {[%emt 0:00:31]} Qc5 {[%emt 0:00:32] Wards off Nc4} 41. Qb3 {[%emt 0:00:13]} Rb8 {[%emt 0:02:44]} 42. Nc4 $36 {[%emt 0:00:36][%mdl 2048] White fights for an advantage.} Qd5+ {[%emt 0:00:51]} 43. Kg1 {[%emt 0:00:09]} Rc8 {[%emt 0:00:45] [#]} (43... d3 $11 44. exd3 Bd4) 44. Nd2 $1 $16 {[%emt 0:00:22]} Qe5 {[%emt 0:00:55]} 45. Qd3 {[%emt 0:00:47]} Rb8 {[%emt 0:01:37]} 46. b6 {[%emt 0:00:10][%cal Bb5b6,Bb6b7][%mdl 32] Inhibits Qc7.} Qa5 {[%emt 0:00:24] Prevents Qa6. This costs Black the game.} ({Black should try} 46... Qd5 $1 $14) 47. b7 $18 {[%emt 0:00:40]} Qc3 {[%emt 0:00:31]} 48. Nc4 {[%emt 0:00:33]} Be7 {[%emt 0:00:26]} (48... e5 $142 49. f3 Kh7) 49. Ne5 {[%emt 0:00:40]} Qc7 {[%emt 0:00:24] [#] Dodges Nd7} (49... Bd6 {might work better.}) 50. Qb5 $1 {[%emt 0:00:18] Weighted Error Value: White=0.09 (flawless) /Black=0.33.  Mistake:       	White=1     	Black=6      Inaccurate:     	White=4     	Black=3      OK:         	White=20    	Black=9      Best:        	---       	Black=5      Strong:       	White=2     	---} ({Inferior is} 50. Qxd4 Bf6 (50... Rxb7 51. Rxb7 Qxb7 52. Nd3+ Kg8 53. Ne5 $15) 51. Rb5 Rxb7 52. Rxb7 Qxb7 $11) 1-0

[Event "SixDays Budapest January IM-A 2025"]
[Site "Budapest"]
[Date "2025.01.28"]
[Round "5.3"]
[White "Chubakov, Sultan"]
[Black "Varga, Zoltan"]
[Result "1/2-1/2"]
[Annotator "TA"]
[ECO "D25"]
[WhiteElo "2237"]
[BlackElo "2304"]
[PlyCount "31"]
[EventDate "2025.01.24"]
[EventType "tourn"]
[EventCountry "HUN"]
[SourceTitle "playchess.com"]
[Source "ChessBase"]
[SourceQuality "1"]
[TimeControl "5400+30"]

{[%evp 12,31,57,29,65,33,54,10,4,-3,-6,-2,-2,-5,0,-5,-1,-6,12,20,18,32]} 1. d4 {[%emt 0:00:03]} d5 {[%emt 0:01:09]} 2. c4 {[%emt 0:00:06]} dxc4 {[%emt 0:00:07]} 3. Nf3 {[%emt 0:00:05]} Nf6 4. e3 {[%emt 0:00:07]} g6 {[%emt 0:00:21]} 5. Bxc4 {[%emt 0:00:15]} Bg7 {[%emt 0:00:02]} 6. O-O {[%emt 0:02:43]} O-O {[%emt 0:00:05]} 7. Qe2 {[%emt 0:04:37]} Ne4 {[%emt 0:03:17] D25: Queen's Gambit Accepted: 4 e3: sidelines and 4...Bg4.} 8. Nc3 {[%emt 0:08:01]} Nd6 {[%emt 0:00:32]} 9. Bd3 {[%emt 0:05:55]} Nc6 {[%emt 0:05:13] The position is equal.} 10. d5 $146 {[%emt 0:10:54]} (10. Rd1 e5 11. dxe5 Nxe5 12. Nxe5 Bxe5 13. f4 Bxc3 14. bxc3 Re8 15. e4 Qh4 16. e5 {1-0 Dobrov,V (2492)-Najer,E (2608) RUS Cup Qualifier 1 blitz 2004}) 10... Nb4 {[%emt 0:00:32]} 11. e4 {[%emt 0:00:27]} c6 {[%emt 0:02:28]} 12. dxc6 {[%emt 0:03:16]} Nxd3 {[%emt 0:00:55]} 13. Qxd3 {[%emt 0:00:30]} bxc6 {[%emt 0:00:03]} 14. Rd1 Qb6 {[%emt 0:03:03]} 15. h3 {[%emt 0:11:32]} Ba6 {[%emt 0:12:44]} 16. Qc2 {[%emt 0:02:12] Weighted Error Value: White=0.13 (very precise) /Black=0.06 (flawless)   Inaccurate:     	White=2     	---        OK:         	White=3     	Black=4      Best:        	White=1     	---} 1/2-1/2

[Event "SixDays Budapest January IM-A 2025"]
[Site "Budapest"]
[Date "2025.01.28"]
[Round "5.4"]
[White "Papp, Levente"]
[Black "Golubovskis, Maksims"]
[Result "0-1"]
[Annotator "TA"]
[ECO "A18"]
[WhiteElo "2386"]
[BlackElo "2237"]
[PlyCount "108"]
[EventDate "2025.01.24"]
[EventType "tourn"]
[EventCountry "HUN"]
[SourceTitle "playchess.com"]
[Source "ChessBase"]
[SourceQuality "1"]
[TimeControl "5400+30"]

{[%evp 11,108,50,45,46,33,20,16,35,20,26,31,-13,8,11,11,18,22,19,20,14,18,-6,-16,-62,-61,-84,-62,-74,-81,-216,0,0,0,8,41,0,0,0,25,11,18,0,0,0,0,0,0,0,0,-8,-8,-8,-8,-8,0,-7,0,-10,-12,-11,0,-8,-11,-93,0,-156,-157,-299,-272,-251,-295,-279,-293,-292,-257,-519,-496,-440,-2060,-2054,-1777,-2031,-1978,-2474,-1983,-6748,-6536,-29978,-29979,-29989,-29985,-29991,-29992,-29992,-29989,-29993,-29986,-29986,-29987]} 1. c4 {[%emt 0:11:45]} Nf6 {[%emt 0:00:16]} 2. Nc3 {[%emt 0:00:20]} e6 {[%emt 0:00:12][%cal Be7e6,Be6d5][%mdl 32]} 3. e4 {[%emt 0:01:20][%cal Be2e4,Be4e5][%mdl 32]} d5 {[%emt 0:00:15]} 4. cxd5 {[%emt 0:00:58]} exd5 {[%emt 0:00:03]} 5. e5 {[%emt 0:00:08]} d4 {[%emt 0:00:20]} 6. exf6 {[%emt 0:00:11]} dxc3 {[%emt 0:00:17]} 7. Bb5+ {[%emt 0:00:02] A18: English Opening: Flohr-Mikenas System (1 c4 Nf6 2 Nc3 e6 3 e4).} Nc6 {[%emt 0:00:20]} 8. Qe2+ {[%emt 0:18:07]} Be6 {[%emt 0:00:12]} 9. dxc3 {[%emt 0:00:09] The position is equal.} Qxf6 {[%emt 0:00:10]} 10. Nf3 {[%emt 0:02:11]} Bd6 {[%emt 0:00:09]} 11. Bd3 $146 {[%emt 0:11:19]} (11. Bg5 Qg6 12. Bd3 Qh5 13. h3 O-O 14. O-O-O Ne5 15. Be4 Nxf3 16. h4 Nxg5 17. Qxh5 Nxe4 {0-1 Duda,J (2760)-Aronian,L (2772) Wch Blitz Warsaw 2021 (9)}) 11... h6 {[%emt 0:03:28] Dodges Bg5} 12. Bc4 {[%emt 0:00:09]} O-O {[%emt 0:02:24]} 13. Bxe6 {[%emt 0:00:35] Threatens to win with Bb3.} Rae8 {[%emt 0:00:42] [#]} 14. Bxf7+ $1 {[%emt 0:01:58]} Qxf7 {[%emt 0:00:20]} 15. Be3 {[%emt 0:00:05]} Ne7 {[%emt 0:06:38][%cal Bc6e7,Be7d5,Bd5f4,Bf4g2][%mdl 32] Black sacrificed a pawn} 16. Nd2 {[%emt 0:15:11][%cal Od2e4]} Nd5 {[%emt 0:10:18]} 17. O-O-O {[%emt 0:01:38]} (17. O-O $11) 17... Nf4 {[%emt 0:08:18] Black is more active.} 18. Qc4 {[%emt 0:05:55]} Nxg2 {[%emt 0:00:34]} 19. Bd4 {[%emt 0:04:54]} c5 {[%emt 0:07:07]} 20. Bxg7 {[%emt 0:03:03]} Kxg7 $2 {[%emt 0:02:44]} (20... Bf4 $1 $19 21. Qxc5 (21. Qxf7+ $2 Rxf7 22. Kb1 Rxg7 $19) 21... Qxg7) 21. Rhg1 $11 {[%emt 0:00:50]} Qg6 {[%emt 0:01:07]} 22. Qf1 $1 {[%emt 0:00:24]} Kh7 {[%emt 0:08:14][%cal Of8g8]} 23. Rxg2 {[%emt 0:00:33]} Qf5 {[%emt 0:00:14]} 24. b3 {[%emt 0:06:39]} Bf4 {[%emt 0:03:16]} 25. Kb2 {[%emt 0:00:52]} Rd8 {[%emt 0:00:56]} 26. Nc4 {[%emt 0:02:46]} (26. Nb1 Rxd1 27. Qxd1 b5 28. Qc2) 26... b5 {[%emt 0:01:43]} 27. Rxd8 {[%emt 0:00:31]} Rxd8 {[%emt 0:00:06]} 28. Qe2 {[%emt 0:00:04]} Bg5 {[%emt 0:09:46] Dodges Qe7+} 29. Ne3 {[%emt 0:01:28]} Qe5 {[%emt 0:00:33]} 30. Rg1 {[%emt 0:07:36]} b4 {[%emt 0:09:52]} 31. Qc2+ {[%emt 0:00:54]} Kh8 {[%emt 0:00:01]} 32. Rd1 $132 {[%emt 0:00:09][%mdl 2048] White puts up resistance} Rxd1 {[%emt 0:00:25]} 33. Nxd1 {[%emt 0:00:26][%mdl 4096] Endgame KQB-KQN. White is a pawn up.} Bf6 {[%emt 0:00:30]} 34. Qd3 {[%emt 0:02:43]} Qxh2 {[%emt 0:02:35]} 35. Kc2 {[%emt 0:00:47]} Qe5 {[%emt 0:03:53]} (35... bxc3 {simplifies} 36. Qf3 Qe5 37. Nxc3 Qxc3+ 38. Qxc3 Bxc3 39. Kxc3 Kg7) 36. Qf3 {[%emt 0:01:10]} bxc3 {[%emt 0:03:49]} 37. Ne3 {[%emt 0:00:05]} (37. Qxc3 $11 {remains equal.} Qe2+ 38. Qd2) 37... h5 {[%emt 0:03:04]} ({Black should try} 37... Bg7 $17) 38. Nc4 $2 {[%emt 0:00:34] Black continues to play with concentration.} (38. Qa8+ $1 $11 Kg7 39. Qxa7+ Kh6 40. Qa8) 38... Qg5 $17 {[%emt 0:00:14]} 39. Qe4 {[%emt 0:00:46] Wards off Qg6} (39. Ne3 $17) 39... Kg7 $19 {[%emt 0:01:40]} 40. Ne3 {[%emt 0:00:26] [#]} Bd4 $1 {[%emt 0:01:23] White must now prevent ...Qg6.} 41. f4 {[%emt 0:00:23]} Qg6 {[%emt 0:01:23]} 42. f5 {[%emt 0:00:01]} (42. Nf5+ Kf6 43. Nd6 Qxe4+ 44. Nxe4+ Kf5 45. Ng3+ Kxf4 (45... Kg4 $2 46. Ne2 $19) 46. Ne2+ Kf3 47. Nxc3 Bxc3 48. Kxc3 h4 $19) 42... Qa6 {[%emt 0:01:55]} 43. Qe7+ $2 {[%emt 0:01:20]} (43. Kd1) 43... Kh6 {[%emt 0:00:02]} 44. Ng4+ {[%emt 0:00:18]} ({But not} 44. Qf8+ $2 Bg7) (44. Qe6+ $142 Qxe6 45. fxe6) 44... hxg4 {[%emt 0:00:07]} 45. Qh4+ {[%emt 0:00:12]} Kg7 {[%emt 0:00:19] ( -> ...Qe2+)} 46. Qe7+ {[%emt 0:00:09]} Kg8 {[%emt 0:01:27]} 47. Qe8+ {[%emt 0:01:11] [#]} Kh7 $1 {[%emt 0:00:01]} 48. a4 {[%emt 0:00:36]} Qh6 {[%emt 0:01:02] ( -> ...Qd2+)} 49. Qe7+ {[%emt 0:00:32]} Bg7 {[%emt 0:00:20] Black mates.} 50. Kd3 {[%emt 0:00:05]} Qf6 {[%emt 0:00:59]} 51. Qb7 {[%emt 0:00:27]} Qd4+ {[%emt 0:00:40]} 52. Ke2 {[%emt 0:00:05]} Qd2+ {[%emt 0:00:09]} 53. Kf1 {[%emt 0:00:01]} Qd1+ {[%emt 0:00:10]} 54. Kf2 {[%emt 0:00:05] [#]} Qf3+ $1 {[%emt 0:00:08] Weighted Error Value: White=0.64/Black=0.10 (very precise)   Missed win:     	---       	Black=1      Mistake:       	White=7     	Black=1      Inaccurate:     	White=2     	Black=1      OK:         	White=11    	Black=18     Best:        	White=7     	Black=5      Strong:       	White=1     	Black=1      Brilliant:      	White=1     	---} 0-1

[Event "SixDays Budapest January IM-A 2025"]
[Site "Budapest"]
[Date "2025.01.28"]
[Round "5.5"]
[White "Kiremitciyan, Ari"]
[Black "Mauron, Pierre"]
[Result "1-0"]
[Annotator "TA"]
[ECO "D35"]
[WhiteElo "2251"]
[BlackElo "2016"]
[PlyCount "67"]
[EventDate "2025.01.24"]
[EventType "tourn"]
[EventCountry "HUN"]
[SourceTitle "playchess.com"]
[Source "ChessBase"]
[SourceQuality "1"]
[TimeControl "5400+30"]

{[%evp 15,67,14,7,9,25,14,37,34,62,58,54,54,54,36,150,160,183,173,220,208,241,272,250,260,242,252,283,291,283,285,287,288,276,290,281,272,518,531,525,502,710,272,381,374,410,329,1601,1029,5589,3920,5589,5573,29987,29988]} 1. d4 {[%emt 0:00:04]} d5 {[%emt 0:03:05]} 2. c4 {[%emt 0:00:09]} e6 {[%emt 0:00:05]} 3. Nc3 {[%emt 0:00:22]} Nf6 {[%emt 0:00:08]} 4. cxd5 {[%emt 0:00:35]} exd5 {[%emt 0:00:18]} 5. Bg5 {[%emt 0:00:13][%cal Bc1g5,Bg5h4,Bh4g3][%mdl 32]} Be7 {[%emt 0:00:32]} 6. e3 {[%emt 0:00:29]} h6 {[%emt 0:00:19]} 7. Bh4 {[%emt 0:00:42]} c6 {[%emt 0:02:09]} 8. Bd3 {[%emt 0:00:26]} O-O {[%emt 0:00:57]} 9. Bg3 $1 {[%emt 0:06:07][%mdl 4] 9.Bg3 is the modern continuation. D35: Queen's Gambit Declined: Exchange Variation.} a5 {[%emt 0:05:07]} 10. h3 {[%emt 0:00:33]} b5 $146 {[%emt 0:01:31]} (10... Na6 11. Nf3 b5 12. Rc1 Bb7 13. O-O Rc8 14. Bf5 Ra8 15. Ne5 Nc7 16. Ne2 Ra6 {1-0 Panesar,V (2441)-Aarav,S (2300) Budapest Eperjesi Memorial 2024 (5)}) 11. Nf3 {[%emt 0:02:37] White is slightly better.} a4 {[%emt 0:00:56]} 12. O-O {[%emt 0:03:25] White is more active.} Nbd7 {[%emt 0:03:56]} 13. Rc1 {[%emt 0:01:47]} Bb7 {[%emt 0:01:16]} 14. a3 {[%emt 0:00:35]} Nb6 {[%emt 0:01:19] [#]} (14... Re8 $14) 15. Nxb5 $1 $16 {[%emt 0:02:18][%mdl 512]} cxb5 {[%emt 0:05:25]} (15... Nc4 16. Bxc4) 16. Bc7 $1 {[%emt 0:00:04]} Qd7 {[%emt 0:07:06]} (16... Qe8 {is a better defense.}) 17. Bxb6 $18 {[%emt 0:00:11]} Rac8 {[%emt 0:01:06] Wards off Rc7} 18. Bc5 {[%emt 0:11:01]} Bxc5 {[%emt 0:07:31]} 19. dxc5 {[%emt 0:00:11]} Bc6 {[%emt 0:02:39]} 20. Nd4 {[%emt 0:02:52]} g6 {[%emt 0:01:51] Inhibits Bf5.} 21. b4 {[%emt 0:11:10]} axb3 {[%emt 0:00:48]} 22. Qxb3 {[%emt 0:00:05]} Rb8 {[%emt 0:02:34]} 23. Rc2 {[%emt 0:03:42][%cal Bc1c2,Bc2d2,Bd2d6][%mdl 32]} Rb7 {[%emt 0:02:21]} 24. Rb1 {[%emt 0:00:31]} Rfb8 {[%emt 0:00:52]} 25. Qc3 {[%emt 0:01:01]} Ne4 $2 {[%emt 0:01:38]} (25... Qe8 26. Qa5 Ne4) 26. Bxe4 {[%emt 0:02:44]} dxe4 {[%emt 0:00:06] Black is weak on the dark squares} 27. Rd2 {[%emt 0:01:40]} Qe8 {[%emt 0:04:42]} 28. Nc2 $2 {[%emt 0:04:46]} (28. Nxc6 Qxc6 29. Rbd1 (29. Rd6 Qe8 $18)) 28... Re7 {[%emt 0:08:43]} (28... Rc8 $142 29. Nb4 Re7) 29. Rbd1 {[%emt 0:01:22]} Re6 {[%emt 0:02:51]} 30. Nb4 {[%emt 0:00:23] Hoping for Rd6.} f5 $2 {[%emt 0:00:46]} (30... Rc8 31. Rd6 Ba8 32. Rxe6 Qxe6) 31. Rd6 {[%emt 0:00:31]} Bb7 {[%emt 0:02:21]} 32. c6 {[%emt 0:02:58]} Rxd6 {[%emt 0:00:51]} 33. Rxd6 {[%emt 0:00:02][%cal Ob4d5] White wants to mate with Nd5!.} Ba8 {[%emt 0:01:30]} 34. Nd5 {[%emt 0:02:29] White took control after the opening.   Weighted Error Value: White=0.39/Black=1.04  Mistake:       	White=1     	Black=5      Inaccurate:     	White=1     	Black=3      OK:         	White=8     	Black=5      Best:        	White=3     	---        Strong:       	White=1     	---        Brilliant:      	White=1     	---} 1-0